[Event "Titled Tuesday Blitz August 31 2021"]
[White "Pajeken, Jakob Leon"]
[Black "Arabidze, Meri"]
[WhiteFideId "12942839"]
[BlackFideId "13604040"]
[WhiteElo "2231"]
[BlackElo "2432"]
[Result "0-1"]
[Round "06"]
[TimeControl "180+1"]
[Date "2021.08.31"]
[WhiteClock "0:00:03"]
[BlackClock "0:00:11"]

1. d4 {[%clk 0:03:00]}  d5 {[%clk 0:02:59]} 2. c4 {[%clk 0:02:59]}  dxc4 {[%clk 0:02:59]} 3. Nf3 {[%clk 0:02:58]}  Nf6 {[%clk 0:02:59]} 4. e3 {[%clk 0:02:58]}  Bg4 {[%clk 0:02:59]} 5. Bxc4 {[%clk 0:02:57]}  e6 {[%clk 0:02:59]} 6. h3 {[%clk 0:02:57]}  Bh5 {[%clk 0:02:59]} 7. Nc3 {[%clk 0:02:57]}  Nbd7 {[%clk 0:02:59]} 8. a3 {[%clk 0:02:54]}  a6 {[%clk 0:02:56]} 9. O-O {[%clk 0:02:51]}  b5 {[%clk 0:02:56]} 10. Be2 {[%clk 0:02:51]}  Bd6 {[%clk 0:02:51]} 11. e4 {[%clk 0:02:49]}  Bxf3 {[%clk 0:02:42]} 12. Bxf3 {[%clk 0:02:47]}  e5 {[%clk 0:02:42]} 13. Bg5 {[%clk 0:02:36]}  h6 {[%clk 0:02:41]} 14. Bh4 {[%clk 0:02:32]}  g5 {[%clk 0:02:35]} 15. Bg3 {[%clk 0:02:28]}  O-O {[%clk 0:02:34]} 16. d5 {[%clk 0:02:17]}  Re8 {[%clk 0:02:27]} 17. Bg4 {[%clk 0:02:14]}  Nf8 {[%clk 0:02:26]} 18. Bf5 {[%clk 0:02:09]}  Kg7 {[%clk 0:02:26]} 19. h4 {[%clk 0:02:09]}  Ng6 {[%clk 0:02:25]} 20. hxg5 {[%clk 0:02:00]}  hxg5 {[%clk 0:02:26]} 21. Qd2 {[%clk 0:01:47]}  Nf4 {[%clk 0:02:25]} 22. Bh2 {[%clk 0:01:41]}  Nd7 {[%clk 0:01:48]} 23. g3 {[%clk 0:01:29]}  Ng6 {[%clk 0:01:48]} 24. Nd1 {[%clk 0:01:21]}  Rh8 {[%clk 0:01:46]} 25. Ne3 {[%clk 0:01:21]}  Nf6 {[%clk 0:01:42]} 26. Rac1 {[%clk 0:01:15]}  Qg8 {[%clk 0:01:39]} 27. f3 {[%clk 0:01:13]}  Qh7 {[%clk 0:01:36]} 28. Ng4 {[%clk 0:01:12]}  Nxg4 {[%clk 0:01:29]} 29. fxg4 {[%clk 0:01:13]}  Qh3 {[%clk 0:01:24]} 30. Rc2 {[%clk 0:01:08]}  Rh6 {[%clk 0:01:22]} 31. Rf2 {[%clk 0:01:01]}  Rah8 {[%clk 0:01:22]} 32. Rg2 {[%clk 0:00:59]}  Ne7 {[%clk 0:01:15]} 33. Qxg5+ {[%clk 0:00:57]}  Kf8 {[%clk 0:01:14]} 34. Bd7 {[%clk 0:00:47]}  Rg6 {[%clk 0:01:10]} 35. Qe3 {[%clk 0:00:46]}  Ng8 {[%clk 0:01:01]} 36. Rcf2 {[%clk 0:00:43]}  Nf6 {[%clk 0:01:00]} 37. Bf5 {[%clk 0:00:40]}  Nxg4 {[%clk 0:01:00]} 38. Qf3 {[%clk 0:00:29]}  Rg7 {[%clk 0:00:54]} 39. Bc8 {[%clk 0:00:25]}  Bc5 {[%clk 0:00:53]} 40. Qc3 {[%clk 0:00:18]}  Bxf2+ {[%clk 0:00:51]} 41. Rxf2 {[%clk 0:00:18]}  Nxf2 {[%clk 0:00:33]} 42. Bxh3 {[%clk 0:00:12]}  Nxh3+ {[%clk 0:00:34]} 43. Kf1 {[%clk 0:00:11]}  Ng5 {[%clk 0:00:34]} 44. Bg1 {[%clk 0:00:10]}  Nxe4 {[%clk 0:00:33]} 45. Qb4+ {[%clk 0:00:10]}  Nd6 {[%clk 0:00:33]} 46. Bc5 {[%clk 0:00:10]}  Rh6 {[%clk 0:00:31]} 47. Qc3 {[%clk 0:00:09]}  Rg5 {[%clk 0:00:25]} 48. Be3 {[%clk 0:00:08]}  Rf5+ {[%clk 0:00:25]} 49. Kg2 {[%clk 0:00:08]}  Rhf6 {[%clk 0:00:23]} 50. Qxc7 {[%clk 0:00:08]}  Kg7 {[%clk 0:00:17]} 51. Bc5 {[%clk 0:00:08]}  Ne4 {[%clk 0:00:17]} 52. d6 {[%clk 0:00:07]}  Nxc5 {[%clk 0:00:13]} 53. Qxc5 {[%clk 0:00:06]}  e4 {[%clk 0:00:14]} 54. Qd4 {[%clk 0:00:04]}  Rf2+ {[%clk 0:00:13]} 55. Qxf2 {[%clk 0:00:03]}  Rxf2+ {[%clk 0:00:13]} 56. Kxf2 {[%clk 0:00:04]}  Kf6 {[%clk 0:00:13]} 57. Ke3 {[%clk 0:00:04]}  Ke6 {[%clk 0:00:13]} 58. Kxe4 {[%clk 0:00:05]}  Kxd6 {[%clk 0:00:13]} 59. Kf5 {[%clk 0:00:05]}  Ke7 {[%clk 0:00:13]} 60. b4 {[%clk 0:00:05]}  f6 {[%clk 0:00:12]} 61. Kg6 {[%clk 0:00:04]}  Ke6 {[%clk 0:00:12]} 62. g4 {[%clk 0:00:04]}  Ke7 {[%clk 0:00:12]} 63. Kf5 {[%clk 0:00:02]}  Kf7 {[%clk 0:00:12]} 64. Kf4 {[%clk 0:00:03]}  Kg6 {[%clk 0:00:11]} 0-1


[Site "https://www.chess.com"]

[Event "Titled Tuesday Blitz August 31 2021"]
[White "Pastar, Slaven"]
[Black "Batsuren, Dambasuren"]
[WhiteFideId "14402718"]
[BlackFideId "4902920"]
[WhiteElo "2150"]
[BlackElo "2371"]
[Result "0-1"]
[Round "06"]
[TimeControl "180+1"]
[Date "2021.08.31"]
[WhiteClock "0:00:02"]
[BlackClock "0:00:51"]

1. b3 {[%clk 0:03:00]}  d5 {[%clk 0:02:58]} 2. Bb2 {[%clk 0:03:00]}  Bf5 {[%clk 0:02:59]} 3. Nf3 {[%clk 0:02:59]}  e6 {[%clk 0:02:59]} 4. e3 {[%clk 0:02:58]}  Nf6 {[%clk 0:03:00]} 5. Nh4 {[%clk 0:02:50]}  Bg4 {[%clk 0:02:56]} 6. Be2 {[%clk 0:02:49]}  Bxe2 {[%clk 0:02:52]} 7. Qxe2 {[%clk 0:02:49]}  Be7 {[%clk 0:02:52]} 8. Nf3 {[%clk 0:02:44]}  O-O {[%clk 0:02:51]} 9. O-O {[%clk 0:02:44]}  c5 {[%clk 0:02:51]} 10. c4 {[%clk 0:02:43]}  Nc6 {[%clk 0:02:50]} 11. cxd5 {[%clk 0:02:42]}  Nxd5 {[%clk 0:02:51]} 12. Nc3 {[%clk 0:02:38]}  Ndb4 {[%clk 0:02:44]} 13. Na4 {[%clk 0:02:11]}  Qd3 {[%clk 0:02:41]} 14. Qxd3 {[%clk 0:01:48]}  Nxd3 {[%clk 0:02:41]} 15. Ne1 {[%clk 0:01:33]}  Nxb2 {[%clk 0:02:10]} 16. Nxb2 {[%clk 0:01:34]}  Bf6 {[%clk 0:02:11]} 17. Rb1 {[%clk 0:01:34]}  Rfd8 {[%clk 0:02:12]} 18. d3 {[%clk 0:01:29]}  Nb4 {[%clk 0:02:10]} 19. a3 {[%clk 0:01:26]}  Nd5 {[%clk 0:02:01]} 20. Nd1 {[%clk 0:01:22]}  Rd6 {[%clk 0:01:45]} 21. f4 {[%clk 0:01:22]}  Nc3 {[%clk 0:01:37]} 22. Nxc3 {[%clk 0:01:18]}  Bxc3 {[%clk 0:01:38]} 23. b4 {[%clk 0:00:30]}  cxb4 {[%clk 0:01:33]} 24. axb4 {[%clk 0:00:31]}  Bxe1 {[%clk 0:01:26]} 25. Rfxe1 {[%clk 0:00:32]}  Rxd3 {[%clk 0:01:26]} 26. Kf2 {[%clk 0:00:30]}  Kf8 {[%clk 0:01:24]} 27. Rec1 {[%clk 0:00:20]}  Rad8 {[%clk 0:01:23]} 28. b5 {[%clk 0:00:18]}  R8d7 {[%clk 0:01:11]} 29. Ra1 {[%clk 0:00:12]}  b6 {[%clk 0:01:11]} 30. Rc8+ {[%clk 0:00:11]}  Ke7 {[%clk 0:01:11]} 31. Ra8 {[%clk 0:00:11]}  Rb3 {[%clk 0:00:57]} 32. R8xa7 {[%clk 0:00:11]}  Rxa7 {[%clk 0:00:57]} 33. Rxa7+ {[%clk 0:00:11]}  Kf6 {[%clk 0:00:58]} 34. g4 {[%clk 0:00:11]}  h6 {[%clk 0:00:58]} 35. h4 {[%clk 0:00:11]}  Rxb5 {[%clk 0:00:57]} 36. g5+ {[%clk 0:00:10]}  hxg5 {[%clk 0:00:56]} 37. hxg5+ {[%clk 0:00:11]}  Kg6 {[%clk 0:00:56]} 38. Kf3 {[%clk 0:00:10]}  Rb3 {[%clk 0:00:57]} 39. Re7 {[%clk 0:00:07]}  b5 {[%clk 0:00:56]} 40. Ke4 {[%clk 0:00:07]}  b4 {[%clk 0:00:54]} 41. Kf3 {[%clk 0:00:05]}  Rb1 {[%clk 0:00:54]} 42. Rb7 {[%clk 0:00:03]}  b3 {[%clk 0:00:54]} 43. Kg2 {[%clk 0:00:02]}  b2 {[%clk 0:00:52]} 44. e4 {[%clk 0:00:02]}  Kh5 {[%clk 0:00:51]} 0-1


[Site "https://www.chess.com"]

[Event "Titled Tuesday Blitz August 31 2021"]
[White "Perera Alfonso, Rene Humberto"]
[Black "Ivanchuk, Vasyl"]
[WhiteFideId "3514722"]
[BlackFideId "14100010"]
[WhiteElo "2313"]
[BlackElo "2710"]
[Result "0-1"]
[Round "06"]
[TimeControl "180+1"]
[Date "2021.08.31"]
[WhiteClock "0:00:22"]
[BlackClock "0:00:20"]

1. e4 {[%clk 0:03:00]}  e5 {[%clk 0:02:59]} 2. Nf3 {[%clk 0:02:59]}  Nc6 {[%clk 0:02:59]} 3. Bb5 {[%clk 0:02:58]}  a6 {[%clk 0:02:59]} 4. Ba4 {[%clk 0:02:58]}  Nf6 {[%clk 0:02:59]} 5. O-O {[%clk 0:02:58]}  Be7 {[%clk 0:02:59]} 6. Re1 {[%clk 0:02:58]}  b5 {[%clk 0:02:59]} 7. Bb3 {[%clk 0:02:57]}  d6 {[%clk 0:02:59]} 8. a4 {[%clk 0:02:56]}  Bd7 {[%clk 0:02:54]} 9. c3 {[%clk 0:02:55]}  O-O {[%clk 0:02:52]} 10. h3 {[%clk 0:02:54]}  h6 {[%clk 0:02:49]} 11. d4 {[%clk 0:02:46]}  Re8 {[%clk 0:02:49]} 12. Nbd2 {[%clk 0:02:45]}  Bf8 {[%clk 0:02:49]} 13. Bc2 {[%clk 0:02:38]}  exd4 {[%clk 0:02:42]} 14. cxd4 {[%clk 0:02:38]}  Nb4 {[%clk 0:02:43]} 15. Bb1 {[%clk 0:02:38]}  bxa4 {[%clk 0:02:31]} 16. Nf1 {[%clk 0:02:38]}  c5 {[%clk 0:02:25]} 17. d5 {[%clk 0:02:37]}  g6 {[%clk 0:02:14]} 18. Ra3 {[%clk 0:02:35]}  Bg7 {[%clk 0:02:13]} 19. N3h2 {[%clk 0:02:36]}  Rb8 {[%clk 0:01:47]} 20. Ng4 {[%clk 0:02:22]}  Nxg4 {[%clk 0:01:27]} 21. hxg4 {[%clk 0:02:23]}  c4 {[%clk 0:01:27]} 22. Rh3 {[%clk 0:02:08]}  Nd3 {[%clk 0:01:27]} 23. Bxd3 {[%clk 0:02:07]}  cxd3 {[%clk 0:01:27]} 24. Bxh6 {[%clk 0:02:07]}  Bxb2 {[%clk 0:01:21]} 25. Qd2 {[%clk 0:01:54]}  a3 {[%clk 0:00:56]} 26. Bg5 {[%clk 0:01:54]}  f6 {[%clk 0:00:56]} 27. Bh4 {[%clk 0:01:44]}  Qe7 {[%clk 0:00:52]} 28. e5 {[%clk 0:01:27]}  dxe5 {[%clk 0:00:44]} 29. Qxd3 {[%clk 0:01:13]}  a2 {[%clk 0:00:25]} 30. Qxg6+ {[%clk 0:00:32]}  Qg7 {[%clk 0:00:25]} 31. Qh5 {[%clk 0:00:27]}  Bxg4 {[%clk 0:00:21]} 32. Bxf6 {[%clk 0:00:22]}  Bxh5 {[%clk 0:00:21]} 33. Bxg7 {[%clk 0:00:22]}  Kxg7 {[%clk 0:00:20]} 0-1


[Site "https://www.chess.com"]

[Event "Titled Tuesday Blitz August 31 2021"]
[White "Piesik, Piotr"]
[Black "Terry, Renato"]
[WhiteFideId "1136194"]
[BlackFideId "3803457"]
[WhiteElo "2395"]
[BlackElo "2581"]
[Result "0-1"]
[Round "06"]
[TimeControl "180+1"]
[Date "2021.08.31"]
[WhiteClock "0:00:50"]
[BlackClock "0:00:32"]

1. Nf3 {[%clk 0:03:00]}  Nf6 {[%clk 0:02:59]} 2. g3 {[%clk 0:03:00]}  d5 {[%clk 0:03:00]} 3. Bg2 {[%clk 0:03:00]}  c6 {[%clk 0:03:00]} 4. O-O {[%clk 0:03:00]}  Bg4 {[%clk 0:02:57]} 5. d3 {[%clk 0:03:00]}  Nbd7 {[%clk 0:02:58]} 6. Nbd2 {[%clk 0:03:00]}  e5 {[%clk 0:02:58]} 7. e4 {[%clk 0:03:00]}  dxe4 {[%clk 0:02:59]} 8. dxe4 {[%clk 0:03:01]}  Be7 {[%clk 0:03:00]} 9. h3 {[%clk 0:03:01]}  Bh5 {[%clk 0:03:00]} 10. Qe1 {[%clk 0:03:01]}  O-O {[%clk 0:03:00]} 11. Nh4 {[%clk 0:03:02]}  Re8 {[%clk 0:03:00]} 12. Nf5 {[%clk 0:03:01]}  Bf8 {[%clk 0:03:01]} 13. Nb3 {[%clk 0:03:02]}  Qc7 {[%clk 0:02:58]} 14. g4 {[%clk 0:02:59]}  Bg6 {[%clk 0:02:58]} 15. Ng3 {[%clk 0:03:00]}  Nc5 {[%clk 0:02:57]} 16. Nxc5 {[%clk 0:03:00]}  Bxc5 {[%clk 0:02:57]} 17. Qe2 {[%clk 0:03:01]}  Nd7 {[%clk 0:02:56]} 18. h4 {[%clk 0:02:59]}  h6 {[%clk 0:02:56]} 19. h5 {[%clk 0:02:59]}  Bh7 {[%clk 0:02:56]} 20. g5 {[%clk 0:02:59]}  hxg5 {[%clk 0:02:57]} 21. Bxg5 {[%clk 0:03:00]}  Nf8 {[%clk 0:02:57]} 22. Qg4 {[%clk 0:02:58]}  Ne6 {[%clk 0:02:49]} 23. Bf6 {[%clk 0:02:56]}  Kh8 {[%clk 0:02:46]} 24. Bh4 {[%clk 0:02:49]}  f6 {[%clk 0:02:42]} 25. Rfd1 {[%clk 0:02:45]}  Qf7 {[%clk 0:02:11]} 26. Bf1 {[%clk 0:02:38]}  b5 {[%clk 0:02:00]} 27. a4 {[%clk 0:02:36]}  a6 {[%clk 0:02:00]} 28. axb5 {[%clk 0:02:36]}  axb5 {[%clk 0:01:59]} 29. Rxa8 {[%clk 0:02:34]}  Rxa8 {[%clk 0:02:00]} 30. Bh3 {[%clk 0:02:26]}  Re8 {[%clk 0:01:54]} 31. c3 {[%clk 0:02:19]}  Bf8 {[%clk 0:01:40]} 32. Nf5 {[%clk 0:02:12]}  Nf4 {[%clk 0:01:36]} 33. Nd6 {[%clk 0:02:06]}  Bxd6 {[%clk 0:01:31]} 34. Rxd6 {[%clk 0:02:07]}  Nxh3+ {[%clk 0:01:14]} 35. Qxh3 {[%clk 0:02:05]}  Qxh5 {[%clk 0:01:14]} 36. Qd7 {[%clk 0:01:16]}  Bxe4 {[%clk 0:00:37]} 37. Rxf6 {[%clk 0:01:06]}  Rg8 {[%clk 0:00:37]} 38. Kf1 {[%clk 0:00:50]}  Qxh4 {[%clk 0:00:32]} 0-1


[Site "https://www.chess.com"]

[Event "Titled Tuesday Blitz August 31 2021"]
[White "Poormosavi, Seyed Kian"]
[Black "Seo, Jung Min"]
[WhiteFideId "12585807"]
[BlackFideId "1734687"]
[WhiteElo "2134"]
[BlackElo "2486"]
[Result "1-0"]
[Round "06"]
[TimeControl "180+1"]
[Date "2021.08.31"]
[WhiteClock "0:00:54"]
[BlackClock "0:00:19"]

1. e4 {[%clk 0:03:00]}  e6 {[%clk 0:03:00]} 2. Nf3 {[%clk 0:03:00]}  d5 {[%clk 0:03:00]} 3. Nc3 {[%clk 0:03:01]}  dxe4 {[%clk 0:03:00]} 4. Nxe4 {[%clk 0:02:56]}  Bd7 {[%clk 0:02:58]} 5. d4 {[%clk 0:02:51]}  Bc6 {[%clk 0:02:58]} 6. Bd3 {[%clk 0:02:52]}  Nd7 {[%clk 0:02:58]} 7. O-O {[%clk 0:02:40]}  Ngf6 {[%clk 0:02:57]} 8. Ng3 {[%clk 0:02:33]}  Bd6 {[%clk 0:02:54]} 9. Qe2 {[%clk 0:02:29]}  Bxf3 {[%clk 0:02:47]} 10. Qxf3 {[%clk 0:02:29]}  c6 {[%clk 0:02:48]} 11. c3 {[%clk 0:02:20]}  O-O {[%clk 0:02:47]} 12. Bg5 {[%clk 0:02:20]}  Qc7 {[%clk 0:02:47]} 13. Nh5 {[%clk 0:02:09]}  Nxh5 {[%clk 0:02:33]} 14. Qxh5 {[%clk 0:01:53]}  g6 {[%clk 0:02:32]} 15. Qh3 {[%clk 0:01:49]}  e5 {[%clk 0:02:31]} 16. dxe5 {[%clk 0:01:44]}  Nxe5 {[%clk 0:02:28]} 17. Bc2 {[%clk 0:01:43]}  Rfe8 {[%clk 0:02:12]} 18. f4 {[%clk 0:01:38]}  Nc4 {[%clk 0:02:07]} 19. f5 {[%clk 0:01:38]}  Bc5+ {[%clk 0:01:52]} 20. Kh1 {[%clk 0:01:36]}  Bf8 {[%clk 0:01:11]} 21. fxg6 {[%clk 0:01:30]}  hxg6 {[%clk 0:01:10]} 22. Rf4 {[%clk 0:01:09]}  Re3 {[%clk 0:00:33]} 23. Qh4 {[%clk 0:00:58]}  Nd6 {[%clk 0:00:19]} 24. Bf6 {[%clk 0:00:55]}  Bg7 {[%clk 0:00:19]} 25. Bxg7 {[%clk 0:00:54]}  Kxg7 {[%clk 0:00:19]} 26. Qf6+ {[%clk 0:00:55]}  Kg8 {[%clk 0:00:19]} 27. Rh4 {[%clk 0:00:54]} 1-0


[Site "https://www.chess.com"]

[Event "Titled Tuesday Blitz August 31 2021"]
[White "Pridorozhni, Aleksei"]
[Black "Andreikin, Dmitry"]
[WhiteFideId "4127870"]
[BlackFideId "4158814"]
[WhiteElo "2565"]
[BlackElo "2782"]
[Result "1/2-1/2"]
[Round "06"]
[TimeControl "180+1"]
[Date "2021.08.31"]
[WhiteClock "0:00:05"]
[BlackClock "0:00:01"]

1. e4 {[%clk 0:03:00]}  e6 {[%clk 0:03:00]} 2. d4 {[%clk 0:02:58]}  d5 {[%clk 0:03:01]} 3. Nc3 {[%clk 0:02:57]}  dxe4 {[%clk 0:03:00]} 4. Nxe4 {[%clk 0:02:57]}  Nd7 {[%clk 0:03:01]} 5. Nf3 {[%clk 0:02:54]}  Ngf6 {[%clk 0:03:02]} 6. Bd3 {[%clk 0:02:51]}  c5 {[%clk 0:03:00]} 7. Nxc5 {[%clk 0:02:49]}  Nxc5 {[%clk 0:02:58]} 8. dxc5 {[%clk 0:02:49]}  Bxc5 {[%clk 0:02:58]} 9. O-O {[%clk 0:02:48]}  O-O {[%clk 0:02:58]} 10. Bg5 {[%clk 0:02:42]}  b6 {[%clk 0:02:57]} 11. Qe2 {[%clk 0:02:42]}  Bb7 {[%clk 0:02:57]} 12. Rad1 {[%clk 0:02:41]}  Qc7 {[%clk 0:02:57]} 13. Bxf6 {[%clk 0:02:39]}  gxf6 {[%clk 0:02:58]} 14. Be4 {[%clk 0:02:39]}  Rfd8 {[%clk 0:02:54]} 15. Bxb7 {[%clk 0:02:38]}  Qxb7 {[%clk 0:02:55]} 16. Rxd8+ {[%clk 0:02:19]}  Rxd8 {[%clk 0:02:55]} 17. Rd1 {[%clk 0:02:20]}  Rxd1+ {[%clk 0:02:49]} 18. Qxd1 {[%clk 0:02:21]}  Qe4 {[%clk 0:02:48]} 19. b3 {[%clk 0:02:16]}  Kg7 {[%clk 0:02:37]} 20. a4 {[%clk 0:02:13]}  h5 {[%clk 0:02:29]} 21. Kf1 {[%clk 0:02:11]}  f5 {[%clk 0:01:59]} 22. h3 {[%clk 0:01:53]}  a5 {[%clk 0:01:49]} 23. Qe2 {[%clk 0:01:42]}  Kf6 {[%clk 0:01:38]} 24. Qd2 {[%clk 0:01:41]}  Ke7 {[%clk 0:01:30]} 25. Qg5+ {[%clk 0:01:26]}  Kd7 {[%clk 0:01:19]} 26. Qd2+ {[%clk 0:01:23]}  Ke8 {[%clk 0:01:17]} 27. Qe2 {[%clk 0:01:08]}  Ke7 {[%clk 0:01:17]} 28. Qd2 {[%clk 0:01:07]}  f4 {[%clk 0:01:14]} 29. Ne1 {[%clk 0:01:03]}  f5 {[%clk 0:01:07]} 30. Qe2 {[%clk 0:00:57]}  Qxe2+ {[%clk 0:00:45]} 31. Kxe2 {[%clk 0:00:57]}  e5 {[%clk 0:00:46]} 32. Nd3 {[%clk 0:00:46]}  Kd6 {[%clk 0:00:33]} 33. c3 {[%clk 0:00:28]}  Kd5 {[%clk 0:00:31]} 34. Nxc5 {[%clk 0:00:17]}  bxc5 {[%clk 0:00:29]} 35. f3 {[%clk 0:00:13]}  h4 {[%clk 0:00:17]} 36. Kd2 {[%clk 0:00:12]}  e4 {[%clk 0:00:16]} 37. Ke2 {[%clk 0:00:11]}  Ke5 {[%clk 0:00:15]} 38. Kd2 {[%clk 0:00:10]}  Ke6 {[%clk 0:00:15]} 39. Ke2 {[%clk 0:00:10]}  Kd5 {[%clk 0:00:16]} 40. Kd2 {[%clk 0:00:10]}  e3+ {[%clk 0:00:09]} 41. Kc2 {[%clk 0:00:07]}  Ke5 {[%clk 0:00:07]} 42. Kd1 {[%clk 0:00:07]}  Kd6 {[%clk 0:00:06]} 43. Kc2 {[%clk 0:00:06]}  Kc6 {[%clk 0:00:06]} 44. c4 {[%clk 0:00:04]}  Kd6 {[%clk 0:00:06]} 45. Kc3 {[%clk 0:00:04]}  Ke6 {[%clk 0:00:06]} 46. Kc2 {[%clk 0:00:04]}  Ke5 {[%clk 0:00:07]} 47. Kd3 {[%clk 0:00:04]}  Kd6 {[%clk 0:00:07]} 48. Kc2 {[%clk 0:00:04]}  Ke7 {[%clk 0:00:05]} 49. Kc3 {[%clk 0:00:04]}  Kf6 {[%clk 0:00:05]} 50. Kc2 {[%clk 0:00:05]}  Ke5 {[%clk 0:00:04]} 51. Kd3 {[%clk 0:00:05]}  Ke6 {[%clk 0:00:03]} 52. Kc2 {[%clk 0:00:05]}  Kd6 {[%clk 0:00:03]} 53. Kc3 {[%clk 0:00:05]}  Ke6 {[%clk 0:00:01]} 54. Kc2 {[%clk 0:00:05]} 1/2-1/2


[Site "https://www.chess.com"]

[Event "Titled Tuesday Blitz August 31 2021"]
[White "Priyanka Nutakki"]
[Black "Ozen, Bahadir"]
[WhiteFideId "25049615"]
[BlackFideId "6337058"]
[WhiteElo "1916"]
[BlackElo "2503"]
[Result "0-1"]
[Round "06"]
[TimeControl "180+1"]
[Date "2021.08.31"]
[WhiteClock "0:00:10"]
[BlackClock "0:00:13"]

1. d4 {[%clk 0:03:00]}  b6 {[%clk 0:03:00]} 2. e4 {[%clk 0:03:00]}  Bb7 {[%clk 0:03:00]} 3. Nd2 {[%clk 0:03:00]}  d6 {[%clk 0:03:01]} 4. Ngf3 {[%clk 0:03:00]}  Nd7 {[%clk 0:03:01]} 5. Bd3 {[%clk 0:03:01]}  g6 {[%clk 0:03:00]} 6. c3 {[%clk 0:02:59]}  Bg7 {[%clk 0:02:59]} 7. Qe2 {[%clk 0:02:59]}  a6 {[%clk 0:02:59]} 8. a4 {[%clk 0:02:58]}  e6 {[%clk 0:02:57]} 9. h4 {[%clk 0:02:58]}  h6 {[%clk 0:02:56]} 10. O-O {[%clk 0:02:55]}  Ne7 {[%clk 0:02:55]} 11. Nh2 {[%clk 0:02:45]}  c5 {[%clk 0:02:51]} 12. Nc4 {[%clk 0:02:38]}  Qc7 {[%clk 0:02:19]} 13. Bf4 {[%clk 0:02:32]}  e5 {[%clk 0:02:19]} 14. dxe5 {[%clk 0:02:32]}  Nxe5 {[%clk 0:01:50]} 15. Rad1 {[%clk 0:02:29]}  O-O {[%clk 0:01:44]} 16. Bc2 {[%clk 0:02:23]}  Rad8 {[%clk 0:01:42]} 17. Nf3 {[%clk 0:02:20]}  N7c6 {[%clk 0:01:29]} 18. Ne3 {[%clk 0:02:11]}  Nxf3+ {[%clk 0:01:29]} 19. Qxf3 {[%clk 0:02:11]}  Ne5 {[%clk 0:01:30]} 20. Qg3 {[%clk 0:02:12]}  Qe7 {[%clk 0:01:14]} 21. h5 {[%clk 0:01:53]}  Qf6 {[%clk 0:01:13]} 22. Nd5 {[%clk 0:01:42]}  Bxd5 {[%clk 0:01:13]} 23. Rxd5 {[%clk 0:01:43]}  g5 {[%clk 0:01:13]} 24. Bc1 {[%clk 0:01:38]}  b5 {[%clk 0:01:12]} 25. f4 {[%clk 0:01:35]}  gxf4 {[%clk 0:01:11]} 26. Bxf4 {[%clk 0:01:20]}  Qe6 {[%clk 0:01:11]} 27. axb5 {[%clk 0:00:58]}  axb5 {[%clk 0:01:12]} 28. Bb3 {[%clk 0:00:48]}  c4 {[%clk 0:01:10]} 29. Bc2 {[%clk 0:00:47]}  Kh8 {[%clk 0:00:53]} 30. Rxb5 {[%clk 0:00:43]}  Rg8 {[%clk 0:00:54]} 31. Qh4 {[%clk 0:00:38]}  Rb8 {[%clk 0:00:51]} 32. Rxb8 {[%clk 0:00:33]}  Rxb8 {[%clk 0:00:51]} 33. Ba4 {[%clk 0:00:20]}  Rxb2 {[%clk 0:00:44]} 34. Qd8+ {[%clk 0:00:18]}  Kh7 {[%clk 0:00:45]} 35. Bxe5 {[%clk 0:00:18]}  Qxe5 {[%clk 0:00:40]} 36. Rxf7 {[%clk 0:00:16]}  Qc5+ {[%clk 0:00:33]} 37. Kf1 {[%clk 0:00:16]}  Rb1+ {[%clk 0:00:28]} 38. Ke2 {[%clk 0:00:15]}  Rb2+ {[%clk 0:00:29]} 39. Kf1 {[%clk 0:00:15]}  Qxh5 {[%clk 0:00:12]} 40. Rxg7+ {[%clk 0:00:13]}  Kxg7 {[%clk 0:00:13]} 41. Qe7+ {[%clk 0:00:12]}  Qf7+ {[%clk 0:00:13]} 42. Qxf7+ {[%clk 0:00:12]}  Kxf7 {[%clk 0:00:14]} 43. Bc6 {[%clk 0:00:12]}  Kf6 {[%clk 0:00:14]} 44. Bd5 {[%clk 0:00:12]}  Ke5 {[%clk 0:00:14]} 45. Bxc4 {[%clk 0:00:13]}  Kxe4 {[%clk 0:00:14]} 46. Kg1 {[%clk 0:00:11]}  d5 {[%clk 0:00:14]} 47. Ba6 {[%clk 0:00:09]}  Rc2 {[%clk 0:00:14]} 48. c4 {[%clk 0:00:09]}  dxc4 {[%clk 0:00:13]} 49. Bb7+ {[%clk 0:00:10]}  Ke3 {[%clk 0:00:13]} 0-1


[Site "https://www.chess.com"]

[Event "Titled Tuesday Blitz August 31 2021"]
[White "Prydun, Andriy"]
[Black "Dzagnidze, Nana"]
[WhiteFideId "14145898"]
[BlackFideId "13601903"]
[WhiteElo "2047"]
[BlackElo "2391"]
[Result "0-1"]
[Round "06"]
[TimeControl "180+1"]
[Date "2021.08.31"]
[WhiteClock "0:00:04"]
[BlackClock "0:00:04"]

1. d4 {[%clk 0:02:47]}  d5 {[%clk 0:02:57]} 2. Nc3 {[%clk 0:02:47]}  Bf5 {[%clk 0:02:54]} 3. Bf4 {[%clk 0:02:46]}  e6 {[%clk 0:02:53]} 4. e3 {[%clk 0:02:44]}  Bd6 {[%clk 0:02:51]} 5. g4 {[%clk 0:02:42]}  Bg6 {[%clk 0:02:49]} 6. h4 {[%clk 0:02:41]}  h5 {[%clk 0:02:44]} 7. g5 {[%clk 0:02:23]}  Bxf4 {[%clk 0:02:38]} 8. exf4 {[%clk 0:02:24]}  Ne7 {[%clk 0:02:35]} 9. Nf3 {[%clk 0:02:21]}  Nd7 {[%clk 0:02:25]} 10. Bd3 {[%clk 0:02:16]}  c5 {[%clk 0:02:23]} 11. dxc5 {[%clk 0:02:04]}  O-O {[%clk 0:02:05]} 12. b4 {[%clk 0:01:42]}  a5 {[%clk 0:02:02]} 13. a3 {[%clk 0:01:36]}  b6 {[%clk 0:01:50]} 14. Bxg6 {[%clk 0:01:34]}  fxg6 {[%clk 0:01:48]} 15. Nd4 {[%clk 0:01:13]}  Qe8 {[%clk 0:01:01]} 16. c6 {[%clk 0:01:10]}  Nxc6 {[%clk 0:00:25]} 17. Nxc6 {[%clk 0:01:08]}  Rxf4 {[%clk 0:00:24]} 18. b5 {[%clk 0:00:51]}  Nc5 {[%clk 0:00:24]} 19. Qd2 {[%clk 0:00:45]}  Qf7 {[%clk 0:00:21]} 20. Ne5 {[%clk 0:00:36]}  Qf5 {[%clk 0:00:16]} 21. Nxg6 {[%clk 0:00:36]}  Re4+ {[%clk 0:00:16]} 22. Nxe4 {[%clk 0:00:31]}  Qxe4+ {[%clk 0:00:16]} 23. Qe3 {[%clk 0:00:09]}  Qxh1+ {[%clk 0:00:17]} 24. Ke2 {[%clk 0:00:04]}  Qxa1 {[%clk 0:00:16]} 25. Qf4 {[%clk 0:00:04]}  Qb2 {[%clk 0:00:11]} 26. Ne7+ {[%clk 0:00:03]}  Kh8 {[%clk 0:00:11]} 27. Qf3 {[%clk 0:00:03]}  Qxc2+ {[%clk 0:00:11]} 28. Kf1 {[%clk 0:00:03]}  Qh7 {[%clk 0:00:08]} 29. g6 {[%clk 0:00:03]}  Qh6 {[%clk 0:00:08]} 30. Qf7 {[%clk 0:00:03]}  Ne4 {[%clk 0:00:07]} 31. Nc6 {[%clk 0:00:03]}  Nf6 {[%clk 0:00:05]} 32. Ne5 {[%clk 0:00:03]}  Re8 {[%clk 0:00:04]} 33. Qd7 {[%clk 0:00:03]}  Qf4 {[%clk 0:00:04]} 34. Nf7+ {[%clk 0:00:03]}  Kg8 {[%clk 0:00:04]} 35. Ng5 {[%clk 0:00:04]}  Qxh4 {[%clk 0:00:03]} 36. Qf7+ {[%clk 0:00:04]}  Kh8 {[%clk 0:00:04]} 37. Nh7 {[%clk 0:00:04]}  Qh1+ {[%clk 0:00:04]} 38. Ke2 {[%clk 0:00:04]}  Qe4+ {[%clk 0:00:04]} 39. Kf1 {[%clk 0:00:05]}  Rc8 {[%clk 0:00:04]} 40. Nxf6 {[%clk 0:00:04]}  Rc1# {[%clk 0:00:04]} 0-1


[Site "https://www.chess.com"]